[Event "*** Titled Tuesday Blitz"]
[Site "Chess.com"]
[Date "2020.02.04"]
[Round "9"]
[White "francyIM"]
[Black "PowerThinking2650"]
[Result "0-1"]
[WhiteElo "2572"]
[BlackElo "2422"]
[TimeControl "180+2"]
[EndTime "15:09:38 PST"]
[Termination "PowerThinking2650 won by resignation"]

1. d4 {[%clk 0:03:01.9]} 1... Nf6 {[%clk 0:03:00.7]} 2. c4 {[%clk 0:03:02.9]}
2... g6 {[%clk 0:03:01.6]} 3. g3 {[%clk 0:03:03.4]} 3... Bg7 {[%clk 0:03:02.8]}
4. Bg2 {[%clk 0:03:04.3]} 4... O-O {[%clk 0:03:04]} 5. Nc3 {[%clk 0:03:05.9]}
5... d6 {[%clk 0:03:05.1]} 6. Nf3 {[%clk 0:03:06.8]} 6... Nbd7 {[%clk
0:03:06.4]} 7. O-O {[%clk 0:03:08.3]} 7... e5 {[%clk 0:03:07.9]} 8. e4 {[%clk
0:03:09.1]} 8... exd4 {[%clk 0:03:07.6]} 9. Nxd4 {[%clk 0:03:11]} 9... Re8
{[%clk 0:03:08.9]} 10. Qc2 {[%clk 0:03:09.2]} 10... Nc5 {[%clk 0:03:08.5]} 11.
Rd1 {[%clk 0:03:09.1]} 11... a5 {[%clk 0:02:38.6]} 12. Ndb5 {[%clk 0:03:09.3]}
12... Bd7 {[%clk 0:02:37.4]} 13. Bf4 {[%clk 0:03:07.3]} 13... Qc8 {[%clk
0:02:24.8]} 14. Rac1 {[%clk 0:02:54.4]} 14... h6 {[%clk 0:02:04.9]} 15. f3
{[%clk 0:02:54.1]} 15... Ne6 {[%clk 0:02:02]} 16. Be3 {[%clk 0:02:54.5]} 16...
Ng5 {[%clk 0:02:02.6]} 17. h4 {[%clk 0:02:54]} 17... Ne6 {[%clk 0:02:00.1]} 18.
Qd2 {[%clk 0:02:54.6]} 18... Kh7 {[%clk 0:01:51.9]} 19. Nd4 {[%clk 0:02:52.7]}
19... Nxd4 {[%clk 0:01:50.9]} 20. Bxd4 {[%clk 0:02:53.2]} 20... Bh3 {[%clk
0:01:44.6]} 21. Bxf6 {[%clk 0:02:49.9]} 21... Bxf6 {[%clk 0:01:37.4]} 22. Nd5
{[%clk 0:02:51.8]} 22... Bg7 {[%clk 0:01:35.8]} 23. Nxc7 {[%clk 0:02:43.2]}
23... Bxg2 {[%clk 0:01:30.8]} 24. Nxe8 {[%clk 0:02:43.6]} 24... Bxf3 {[%clk
0:01:25]} 25. Nxg7 {[%clk 0:02:43.6]} 25... Qg4 {[%clk 0:01:00.3]} 26. Kh2
{[%clk 0:02:31.1]} 26... Bxd1 {[%clk 0:00:54.7]} 27. Qxd1 {[%clk 0:02:29]} 27...
Qxe4 {[%clk 0:00:46.6]} 28. Qxd6 {[%clk 0:02:28.7]} 28... Kxg7 {[%clk
0:00:34.4]} 29. Rf1 {[%clk 0:02:24.8]} 29... Qxc4 {[%clk 0:00:24.6]} 30. Qf6+
{[%clk 0:02:17.6]} 30... Kg8 {[%clk 0:00:25.2]} 31. b3 {[%clk 0:02:17.4]} 31...
Qd5 {[%clk 0:00:18]} 32. Rf2 {[%clk 0:02:16]} 32... Re8 {[%clk 0:00:16.6]} 33.
Qc3 {[%clk 0:02:04.4]} 33... h5 {[%clk 0:00:13.1]} 34. Rd2 {[%clk 0:02:03.7]}
34... Qe5 {[%clk 0:00:13.5]} 35. Qxe5 {[%clk 0:02:02.9]} 35... Rxe5 {[%clk
0:00:14.1]} 36. Kg2 {[%clk 0:02:04.8]} 36... Rc5 {[%clk 0:00:14.3]} 37. Kf3
{[%clk 0:02:05.6]} 37... Rc3+ {[%clk 0:00:14.6]} 38. Kf4 {[%clk 0:02:06.5]}
38... a4 {[%clk 0:00:15.6]} 39. bxa4 {[%clk 0:02:02.4]} 39... Ra3 {[%clk
0:00:16.6]} 40. Ke5 {[%clk 0:01:59.9]} 40... Rxa4 {[%clk 0:00:16.9]} 41. Kd6
{[%clk 0:02:00.5]} 41... Ra3 {[%clk 0:00:17.5]} 42. Kc7 {[%clk 0:02:01.3]} 42...
Rxg3 {[%clk 0:00:17.8]} 43. Kxb7 {[%clk 0:02:02.3]} 43... Rg4 {[%clk 0:00:18.4]}
44. Rh2 {[%clk 0:02:01.9]} 44... Kg7 {[%clk 0:00:17.1]} 45. Kb6 {[%clk
0:02:02.7]} 45... f6 {[%clk 0:00:18.2]} 46. Kb5 {[%clk 0:02:03.9]} 46... Kh6
{[%clk 0:00:18]} 47. a4 {[%clk 0:02:05.2]} 47... Rg1 {[%clk 0:00:18.9]} 48. a5
{[%clk 0:02:05.5]} 48... Rb1+ {[%clk 0:00:19.7]} 49. Ka4 {[%clk 0:02:06.4]}
49... Ra1+ {[%clk 0:00:20.2]} 50. Kb4 {[%clk 0:02:07.5]} 50... g5 {[%clk
0:00:20.8]} 51. hxg5+ {[%clk 0:02:08.1]} 51... fxg5 {[%clk 0:00:22.1]} 52. Rh3
{[%clk 0:02:08.6]} 52... g4 {[%clk 0:00:23]} 53. Rc3 {[%clk 0:02:08.5]} 53... h4
{[%clk 0:00:23]} 54. Rc6+ {[%clk 0:02:05.6]} 54... Kg5 {[%clk 0:00:22.6]} 55. a6
{[%clk 0:02:05.7]} 55... Kf4 {[%clk 0:00:22.2]} 56. Rc4+ {[%clk 0:02:02]} 56...
Kg3 {[%clk 0:00:22.2]} 57. Rc3+ {[%clk 0:02:02.2]} 57... Kh2 {[%clk 0:00:22.8]}
58. Ra3 {[%clk 0:02:02.9]} 58... Rb1+ {[%clk 0:00:20.5]} 59. Rb3 {[%clk
0:02:01.5]} 59... Ra1 {[%clk 0:00:20.3]} 60. Ra3 {[%clk 0:02:01.9]} 60... Rxa3
{[%clk 0:00:21.3]} 61. Kxa3 {[%clk 0:02:03.8]} 61... g3 {[%clk 0:00:22.7]} 62.
a7 {[%clk 0:02:05.7]} 62... g2 {[%clk 0:00:24]} 63. a8=Q {[%clk 0:02:07]} 63...
g1=Q {[%clk 0:00:25.2]} 64. Qh8 {[%clk 0:02:04.1]} 64... h3 {[%clk 0:00:25.2]}
65. Kb3 {[%clk 0:02:05.5]} 65... Qe3+ {[%clk 0:00:24.7]} 66. Kc2 {[%clk
0:02:05.2]} 66... Kg2 {[%clk 0:00:24.2]} 67. Qg8+ {[%clk 0:02:06.2]} 67... Qg3
{[%clk 0:00:24.3]} 68. Qd5+ {[%clk 0:02:06.6]} 68... Kg1 {[%clk 0:00:25.3]} 69.
Qd1+ {[%clk 0:02:00.8]} 69... Kg2 {[%clk 0:00:24.3]} 70. Qd5+ {[%clk 0:02:01.5]}
70... Qf3 {[%clk 0:00:24.4]} 71. Qg5+ {[%clk 0:02:02.1]} 71... Kf1 {[%clk
0:00:22.7]} 72. Kd2 {[%clk 0:01:56]} 72... Qg2+ {[%clk 0:00:22.1]} 0-1

[Event "*** Titled Tuesday Blitz"]
[Site "Chess.com"]
[Date "2020.02.04"]
[Round "9"]
[White "mbojan"]
[Black "Keaton87"]
[Result "1-0"]
[WhiteElo "2746"]
[BlackElo "2557"]
[TimeControl "180+2"]
[EndTime "15:09:39 PST"]
[Termination "mbojan won by resignation"]

1. e4 {[%clk 0:03:01.9]} 1... c5 {[%clk 0:03:00.3]} 2. Nf3 {[%clk 0:03:02.8]}
2... d6 {[%clk 0:03:01.3]} 3. d4 {[%clk 0:03:04]} 3... Nf6 {[%clk 0:03:02.8]} 4.
Nc3 {[%clk 0:02:55.9]} 4... cxd4 {[%clk 0:03:03.9]} 5. Nxd4 {[%clk 0:02:57.8]}
5... g6 {[%clk 0:03:05.1]} 6. Be3 {[%clk 0:02:58]} 6... Bg7 {[%clk 0:03:06.6]}
7. f3 {[%clk 0:02:58.2]} 7... O-O {[%clk 0:03:07.6]} 8. Qd2 {[%clk 0:02:59.7]}
8... Nc6 {[%clk 0:03:08.9]} 9. O-O-O {[%clk 0:03:01.2]} 9... d5 {[%clk
0:03:09.2]} 10. Nxc6 {[%clk 0:03:02.5]} 10... bxc6 {[%clk 0:03:09.9]} 11. Bh6
{[%clk 0:03:04.4]} 11... Be6 {[%clk 0:03:07.7]} 12. e5 {[%clk 0:02:55.1]} 12...
Nd7 {[%clk 0:03:06.3]} 13. h4 {[%clk 0:02:35.3]} 13... Bxe5 {[%clk 0:03:07.1]}
14. Bxf8 {[%clk 0:02:29.8]} 14... Qxf8 {[%clk 0:03:07.3]} 15. h5 {[%clk
0:02:31]} 15... Rb8 {[%clk 0:03:03.5]} 16. f4 {[%clk 0:02:28.3]} 16... Bf6
{[%clk 0:03:00.4]} 17. hxg6 {[%clk 0:02:26.6]} 17... hxg6 {[%clk 0:03:00.4]} 18.
Bd3 {[%clk 0:01:54.6]} 18... Nc5 {[%clk 0:03:01.3]} 19. b3 {[%clk 0:01:41.1]}
19... Qg7 {[%clk 0:02:54]} 20. Ne2 {[%clk 0:01:40.9]} 20... Ba1 {[%clk 0:02:31]}
21. c3 {[%clk 0:01:28.6]} 21... Rxb3 {[%clk 0:02:31.8]} 22. axb3 {[%clk
0:01:29.6]} 22... Nxb3+ {[%clk 0:02:32.6]} 23. Kc2 {[%clk 0:01:31.1]} 23... Nxd2
{[%clk 0:02:21.5]} 24. Rxd2 {[%clk 0:01:33]} 24... c5 {[%clk 0:02:06]} 25. Rxa1
{[%clk 0:01:27.9]} 25... Qf6 {[%clk 0:01:51.9]} 26. Kb2 {[%clk 0:01:08.5]} 26...
Bg4 {[%clk 0:01:51.2]} 27. Bc2 {[%clk 0:01:04.6]} 27... Qb6+ {[%clk 0:01:41.5]}
28. Kc1 {[%clk 0:01:04.1]} 28... a5 {[%clk 0:01:32.9]} 29. g3 {[%clk 0:00:50.7]}
29... Kg7 {[%clk 0:01:25.8]} 30. Rb1 {[%clk 0:00:43.5]} 30... Qe6 {[%clk
0:01:21.1]} 31. Bd1 {[%clk 0:00:36.9]} 31... Qe3 {[%clk 0:01:19.7]} 32. Rb7
{[%clk 0:00:26.3]} 32... Bxe2 {[%clk 0:01:15.2]} 33. Bxe2 {[%clk 0:00:25.9]}
33... Qxc3+ {[%clk 0:01:16.4]} 34. Rc2 {[%clk 0:00:26]} 34... Qe3+ {[%clk
0:01:12.9]} 35. Kb1 {[%clk 0:00:23.6]} 35... e6 {[%clk 0:01:09.8]} 36. Bb5
{[%clk 0:00:21.8]} 36... Qb3+ {[%clk 0:00:58.6]} 37. Rb2 {[%clk 0:00:22.6]}
37... Qxg3 {[%clk 0:00:42.3]} 38. Be8 {[%clk 0:00:21.4]} 38... Qxf4 {[%clk
0:00:39.3]} 39. Rxf7+ {[%clk 0:00:21.1]} 39... Qxf7 {[%clk 0:00:40.9]} 40. Bxf7
{[%clk 0:00:23]} 40... Kxf7 {[%clk 0:00:42.5]} 41. Rb5 {[%clk 0:00:23.9]} 41...
c4 {[%clk 0:00:42.4]} 42. Rxa5 {[%clk 0:00:24.9]} 42... Kf6 {[%clk 0:00:43.3]}
43. Kc2 {[%clk 0:00:26.6]} 43... Ke5 {[%clk 0:00:43.5]} 44. Kd2 {[%clk
0:00:20.7]} 44... Kd4 {[%clk 0:00:37.7]} 45. Ra6 {[%clk 0:00:21.6]} 45... e5
{[%clk 0:00:38.9]} 46. Rxg6 {[%clk 0:00:22.3]} 46... e4 {[%clk 0:00:35]} 47. Rg5
{[%clk 0:00:23.4]} 47... c3+ {[%clk 0:00:31]} 48. Kc2 {[%clk 0:00:24.4]} 48...
Kc4 {[%clk 0:00:32.3]} 49. Re5 {[%clk 0:00:24.7]} 49... Kd4 {[%clk 0:00:31.9]}
50. Re8 {[%clk 0:00:25.6]} 50... Ke3 {[%clk 0:00:19.8]} 51. Kxc3 {[%clk
0:00:25.4]} 51... d4+ {[%clk 0:00:21.3]} 52. Kc2 {[%clk 0:00:22.2]} 52... d3+
{[%clk 0:00:11.9]} 53. Kd1 {[%clk 0:00:23.5]} 53... Kf3 {[%clk 0:00:08.7]} 54.
Kd2 {[%clk 0:00:24.9]} 54... Kf4 {[%clk 0:00:08.8]} 55. Rf8+ {[%clk 0:00:26.3]}
55... Ke5 {[%clk 0:00:10]} 56. Ke3 {[%clk 0:00:27.8]} 1-0

[Event "*** Titled Tuesday Blitz"]
[Site "Chess.com"]
[Date "2020.02.04"]
[Round "9"]
[White "DonPreuss"]
[Black "ruvat"]
[Result "1/2-1/2"]
[WhiteElo "2239"]
[BlackElo "2393"]
[TimeControl "180+2"]
[EndTime "15:09:42 PST"]
[Termination "Game drawn by repetition"]

1. d4 {[%clk 0:02:57.9]} 1... d6 {[%clk 0:03:00.7]} 2. e4 {[%clk 0:02:48.9]}
2... Nf6 {[%clk 0:03:00.7]} 3. Nc3 {[%clk 0:02:49.2]} 3... g6 {[%clk 0:03:01.5]}
4. f4 {[%clk 0:02:49.2]} 4... Bg7 {[%clk 0:03:02.1]} 5. Nf3 {[%clk 0:02:50.2]}
5... O-O {[%clk 0:03:02.9]} 6. e5 {[%clk 0:02:51.4]} 6... dxe5 {[%clk
0:03:03.7]} 7. fxe5 {[%clk 0:02:52.4]} 7... Nd5 {[%clk 0:03:04.7]} 8. Bc4 {[%clk
0:02:53.4]} 8... Be6 {[%clk 0:03:04.4]} 9. Bb3 {[%clk 0:02:39.8]} 9... c5 {[%clk
0:03:03.7]} 10. Ne2 {[%clk 0:02:29.4]} 10... cxd4 {[%clk 0:02:58.6]} 11. Nexd4
{[%clk 0:02:30.2]} 11... Bg4 {[%clk 0:02:50]} 12. h3 {[%clk 0:01:46.5]} 12...
Bxf3 {[%clk 0:02:49.5]} 13. Nxf3 {[%clk 0:01:46.9]} 13... e6 {[%clk 0:02:33.3]}
14. O-O {[%clk 0:01:39.9]} 14... Nc6 {[%clk 0:02:27.7]} 15. Qe1 {[%clk
0:01:37.8]} 15... Qc7 {[%clk 0:02:21.2]} 16. Bxd5 {[%clk 0:01:10.2]} 16... exd5
{[%clk 0:02:21.2]} 17. Bf4 {[%clk 0:01:11.6]} 17... Rae8 {[%clk 0:02:09.5]} 18.
Qh4 {[%clk 0:00:54]} 18... Nxe5 {[%clk 0:02:01.4]} 19. Bh6 {[%clk 0:00:42]}
19... Nxf3+ {[%clk 0:01:55.5]} 20. Rxf3 {[%clk 0:00:43.1]} 20... Qb6+ {[%clk
0:01:45.2]} 21. Kh1 {[%clk 0:00:43.1]} 21... Re4 {[%clk 0:01:43.6]} 22. Qg5
{[%clk 0:00:35.9]} 22... Qxb2 {[%clk 0:01:16.2]} 23. Raf1 {[%clk 0:00:35.7]}
23... Bxh6 {[%clk 0:01:08.8]} 24. Qxh6 {[%clk 0:00:36.3]} 24... Qg7 {[%clk
0:01:10.3]} 25. Qg5 {[%clk 0:00:35.3]} 25... Re5 {[%clk 0:01:00.4]} 26. Qd2
{[%clk 0:00:33.2]} 26... f6 {[%clk 0:00:40.2]} 27. Rd3 {[%clk 0:00:27.4]} 27...
Qf7 {[%clk 0:00:28.7]} 28. Rd1 {[%clk 0:00:27.9]} 28... Rfe8 {[%clk 0:00:07.6]}
29. Kh2 {[%clk 0:00:25.8]} 29... Qe6 {[%clk 0:00:07.3]} 30. Rxd5 {[%clk
0:00:21.1]} 30... Rxd5 {[%clk 0:00:07.4]} 31. Qxd5 {[%clk 0:00:22.3]} 31... Qxd5
{[%clk 0:00:08.6]} 32. Rxd5 {[%clk 0:00:23.8]} 32... Re7 {[%clk 0:00:10]} 33.
Kg3 {[%clk 0:00:23.2]} 33... Kf7 {[%clk 0:00:11.2]} 34. Rc5 {[%clk 0:00:24.2]}
34... Ke6 {[%clk 0:00:11.7]} 35. Rc3 {[%clk 0:00:24]} 35... Kd6 {[%clk
0:00:12.1]} 36. Kf3 {[%clk 0:00:25.2]} 36... Rc7 {[%clk 0:00:12.4]} 37. Rd3+
{[%clk 0:00:26.2]} 37... Kc6 {[%clk 0:00:13.3]} 38. c3 {[%clk 0:00:27.8]} 38...
Kb6 {[%clk 0:00:13.6]} 39. Ke3 {[%clk 0:00:26.8]} 39... Kb5 {[%clk 0:00:14.8]}
40. Kd2 {[%clk 0:00:26.9]} 40... a5 {[%clk 0:00:14.7]} 41. Rd5+ {[%clk 0:00:21]}
41... Kb6 {[%clk 0:00:14.4]} 42. Rd6+ {[%clk 0:00:21.4]} 42... Kb5 {[%clk
0:00:15.3]} 43. Rxf6 {[%clk 0:00:22.2]} 43... Rd7+ {[%clk 0:00:15.1]} 44. Kc2
{[%clk 0:00:22.9]} 44... b6 {[%clk 0:00:15.8]} 45. Rf4 {[%clk 0:00:21.7]} 45...
Re7 {[%clk 0:00:16.7]} 46. a4+ {[%clk 0:00:22.6]} 46... Kc5 {[%clk 0:00:17.2]}
47. Kd3 {[%clk 0:00:22.2]} 47... Rd7+ {[%clk 0:00:16.5]} 48. Kc2 {[%clk
0:00:23.1]} 48... Re7 {[%clk 0:00:17.4]} 49. Kd3 {[%clk 0:00:21.9]} 49... Kc6
{[%clk 0:00:18]} 50. Kc4 {[%clk 0:00:20.9]} 50... Rc7 {[%clk 0:00:17]} 51. Rf6+
{[%clk 0:00:20]} 51... Kb7+ {[%clk 0:00:17.1]} 52. Kd4 {[%clk 0:00:19]} 52...
Rd7+ {[%clk 0:00:17.5]} 53. Ke3 {[%clk 0:00:19.2]} 53... Rc7 {[%clk 0:00:18.3]}
54. Kd4 {[%clk 0:00:20.1]} 54... Rd7+ {[%clk 0:00:19.2]} 55. Ke3 {[%clk
0:00:21.3]} 55... Re7+ {[%clk 0:00:20.4]} 56. Kd3 {[%clk 0:00:21.8]} 56... Rd7+
{[%clk 0:00:19.2]} 57. Ke3 {[%clk 0:00:22.7]} 1/2-1/2

[Event "*** Titled Tuesday Blitz"]
[Site "Chess.com"]
[Date "2020.02.04"]
[Round "9"]
[White "bazar-wokzal"]
[Black "Roman_Ovetchkin"]
[Result "0-1"]
[WhiteElo "2536"]
[BlackElo "2708"]
[TimeControl "180+2"]
[EndTime "15:09:48 PST"]
[Termination "Roman_Ovetchkin won on time"]

1. e4 {[%clk 0:03:01.9]} 1... c6 {[%clk 0:03:00.6]} 2. d4 {[%clk 0:03:02.5]}
2... d5 {[%clk 0:03:01.9]} 3. e5 {[%clk 0:03:04]} 3... Bf5 {[%clk 0:03:02.4]} 4.
Nc3 {[%clk 0:03:05.5]} 4... e6 {[%clk 0:03:02.8]} 5. g4 {[%clk 0:03:06.7]} 5...
Bg6 {[%clk 0:03:04.1]} 6. Nge2 {[%clk 0:03:07.7]} 6... f6 {[%clk 0:03:05.2]} 7.
Nf4 {[%clk 0:03:08]} 7... fxe5 {[%clk 0:03:05.7]} 8. dxe5 {[%clk 0:03:07]} 8...
Bf7 {[%clk 0:03:02.7]} 9. Qe2 {[%clk 0:03:08]} 9... Nd7 {[%clk 0:03:00.7]} 10.
Bd2 {[%clk 0:03:04.4]} 10... Qc7 {[%clk 0:02:48.5]} 11. Nd3 {[%clk 0:03:04.7]}
11... O-O-O {[%clk 0:02:41.1]} 12. O-O-O {[%clk 0:03:04.6]} 12... Ne7 {[%clk
0:02:41.8]} 13. Bg2 {[%clk 0:03:03]} 13... a6 {[%clk 0:02:41.4]} 14. f4 {[%clk
0:03:01.4]} 14... g6 {[%clk 0:02:24.4]} 15. Kb1 {[%clk 0:02:52.4]} 15... Bg7
{[%clk 0:02:14]} 16. Rde1 {[%clk 0:02:43.3]} 16... Rhe8 {[%clk 0:02:12.5]} 17.
Qf2 {[%clk 0:02:38.9]} 17... c5 {[%clk 0:02:11.7]} 18. Na4 {[%clk 0:02:19.4]}
18... b6 {[%clk 0:01:59.6]} 19. b3 {[%clk 0:02:17.1]} 19... Nc6 {[%clk
0:01:54.2]} 20. f5 {[%clk 0:02:08.5]} 20... gxf5 {[%clk 0:01:50]} 21. Bg5 {[%clk
0:02:05.3]} 21... Bg6 {[%clk 0:01:37]} 22. Bxd8 {[%clk 0:02:04.4]} 22... Nxd8
{[%clk 0:01:32.8]} 23. Nf4 {[%clk 0:02:00]} 23... Nxe5 {[%clk 0:01:26.5]} 24.
Nxg6 {[%clk 0:01:54.4]} 24... hxg6 {[%clk 0:01:28.4]} 25. gxf5 {[%clk
0:01:54.9]} 25... gxf5 {[%clk 0:01:27.7]} 26. h4 {[%clk 0:01:53.7]} 26... Nb7
{[%clk 0:01:17.5]} 27. h5 {[%clk 0:01:48.8]} 27... Ng4 {[%clk 0:01:15.5]} 28.
Qe2 {[%clk 0:01:43.6]} 28... b5 {[%clk 0:01:15]} 29. Bxd5 {[%clk 0:01:38.5]}
29... bxa4 {[%clk 0:01:14.8]} 30. Qxa6 {[%clk 0:01:36.3]} 30... Kb8 {[%clk
0:01:13.7]} 31. Qxa4 {[%clk 0:01:22.1]} 31... Rd8 {[%clk 0:01:03.5]} 32. Bxe6
{[%clk 0:01:18]} 32... Nf2 {[%clk 0:01:04.3]} 33. Rhf1 {[%clk 0:01:04.7]} 33...
Ne4 {[%clk 0:01:03.6]} 34. Rxe4 {[%clk 0:00:57.3]} 34... fxe4 {[%clk 0:01:03.8]}
35. Qxe4 {[%clk 0:00:55.7]} 35... Qd6 {[%clk 0:00:59.7]} 36. c4 {[%clk
0:00:46.1]} 36... Rf8 {[%clk 0:00:46.6]} 37. Rxf8+ {[%clk 0:00:36.7]} 37... Qxf8
{[%clk 0:00:47.4]} 38. Qf5 {[%clk 0:00:31.3]} 38... Qd6 {[%clk 0:00:43.3]} 39.
Bd5 {[%clk 0:00:28.3]} 39... Qh2 {[%clk 0:00:41.6]} 40. Kc1 {[%clk 0:00:22.1]}
40... Qb2+ {[%clk 0:00:38.5]} 41. Kd1 {[%clk 0:00:22]} 41... Qa1+ {[%clk
0:00:39.5]} 42. Ke2 {[%clk 0:00:17.1]} 42... Qxa2+ {[%clk 0:00:40.6]} 43. Kf1
{[%clk 0:00:16.9]} 43... Qa1+ {[%clk 0:00:40.1]} 44. Kg2 {[%clk 0:00:17.4]}
44... Qb2+ {[%clk 0:00:39.6]} 45. Kf1 {[%clk 0:00:18.1]} 45... Bd4 {[%clk
0:00:19.8]} 46. Bxb7 {[%clk 0:00:17.4]} 46... Qc1+ {[%clk 0:00:13.2]} 47. Ke2
{[%clk 0:00:08.3]} 47... Qe3+ {[%clk 0:00:13.8]} 48. Kf1 {[%clk 0:00:05.3]}
48... Kxb7 {[%clk 0:00:13.6]} 49. Qd7+ {[%clk 0:00:04.5]} 49... Kb6 {[%clk
0:00:14.4]} 0-1

[Event "*** Titled Tuesday Blitz"]
[Site "Chess.com"]
[Date "2020.02.04"]
[Round "9"]
[White "Kira170"]
[Black "EugeneRougon"]
[Result "0-1"]
[WhiteElo "2540"]
[BlackElo "2726"]
[TimeControl "180+2"]
[EndTime "15:09:51 PST"]
[Termination "EugeneRougon won by checkmate"]

1. d4 {[%clk 0:03:01.9]} 1... d5 {[%clk 0:03:00.3]} 2. Nc3 {[%clk 0:03:01.2]}
2... e6 {[%clk 0:02:59]} 3. Bf4 {[%clk 0:03:02]} 3... Bb4 {[%clk 0:02:45]} 4. e3
{[%clk 0:03:02.5]} 4... Nf6 {[%clk 0:02:45.5]} 5. Bd3 {[%clk 0:02:58.9]} 5... c5
{[%clk 0:02:38.6]} 6. dxc5 {[%clk 0:02:58.3]} 6... Nbd7 {[%clk 0:02:35.9]} 7.
Ne2 {[%clk 0:02:47.8]} 7... O-O {[%clk 0:02:20.6]} 8. a3 {[%clk 0:02:31.3]} 8...
Bxc5 {[%clk 0:02:20.2]} 9. O-O {[%clk 0:02:29.9]} 9... a6 {[%clk 0:02:14.9]} 10.
e4 {[%clk 0:02:30.9]} 10... d4 {[%clk 0:02:07.8]} 11. Nb1 {[%clk 0:02:27.1]}
11... e5 {[%clk 0:01:54.8]} 12. Bg3 {[%clk 0:02:28.1]} 12... b5 {[%clk
0:01:39.7]} 13. Nd2 {[%clk 0:02:28.8]} 13... Bb7 {[%clk 0:01:39.6]} 14. Kh1
{[%clk 0:02:28.1]} 14... Qe7 {[%clk 0:01:27.1]} 15. Bh4 {[%clk 0:02:24.2]} 15...
h6 {[%clk 0:01:18.5]} 16. Ng3 {[%clk 0:02:24.9]} 16... g6 {[%clk 0:01:01]} 17.
f4 {[%clk 0:02:09.7]} 17... exf4 {[%clk 0:00:44.4]} 18. Rxf4 {[%clk 0:02:11.6]}
18... Bd6 {[%clk 0:00:44.6]} 19. Rf1 {[%clk 0:02:00.4]} 19... Bxg3 {[%clk
0:00:31.1]} 20. Bxg3 {[%clk 0:02:00.7]} 20... Nxe4 {[%clk 0:00:28.8]} 21. Nxe4
{[%clk 0:01:55.9]} 21... Bxe4 {[%clk 0:00:30.7]} 22. Re1 {[%clk 0:01:53.8]}
22... f5 {[%clk 0:00:31.6]} 23. Bxe4 {[%clk 0:01:53.7]} 23... fxe4 {[%clk
0:00:33.5]} 24. Qxd4 {[%clk 0:01:55.1]} 24... Rfe8 {[%clk 0:00:34.9]} 25. Rad1
{[%clk 0:01:51.5]} 25... Nf6 {[%clk 0:00:34.2]} 26. Qe3 {[%clk 0:01:39.7]} 26...
Kh7 {[%clk 0:00:30.5]} 27. Rd6 {[%clk 0:01:39.8]} 27... Ng4 {[%clk 0:00:17.7]}
28. Qf4 {[%clk 0:01:33.3]} 28... h5 {[%clk 0:00:18.8]} 29. h3 {[%clk 0:01:31.3]}
29... Rf8 {[%clk 0:00:19.9]} 30. Qd2 {[%clk 0:00:58.3]} 30... e3 {[%clk
0:00:19.1]} 31. Rd7 {[%clk 0:00:59.2]} 31... exd2 {[%clk 0:00:11.5]} 32. Rexe7+
{[%clk 0:00:59]} 32... Kh6 {[%clk 0:00:11.7]} 33. hxg4 {[%clk 0:00:27.3]} 33...
Rf1+ {[%clk 0:00:12.1]} 34. Kh2 {[%clk 0:00:28.8]} 34... d1=Q {[%clk 0:00:14]}
35. Bf4+ {[%clk 0:00:30]} 35... Rxf4 {[%clk 0:00:09.8]} 36. Rxd1 {[%clk
0:00:30.9]} 36... Rxg4 {[%clk 0:00:10.1]} 37. Rc7 {[%clk 0:00:27.3]} 37... Re8
{[%clk 0:00:08.9]} 38. Rd2 {[%clk 0:00:28.6]} 38... Re6 {[%clk 0:00:09.8]} 39.
Rf2 {[%clk 0:00:24.9]} 39... Rge4 {[%clk 0:00:07.9]} 40. Rff7 {[%clk 0:00:21.6]}
40... Re2 {[%clk 0:00:07.6]} 41. Rh7+ {[%clk 0:00:20.6]} 41... Kg5 {[%clk
0:00:08.8]} 42. Rc5+ {[%clk 0:00:22]} 42... R6e5 {[%clk 0:00:08.5]} 43. Rhc7
{[%clk 0:00:18.8]} 43... Rxc5 {[%clk 0:00:07.7]} 44. Rxc5+ {[%clk 0:00:20.7]}
44... Kf4 {[%clk 0:00:08.9]} 45. Rc6 {[%clk 0:00:19.3]} 45... g5 {[%clk
0:00:10.4]} 46. Rf6+ {[%clk 0:00:09.9]} 46... Kg4 {[%clk 0:00:10.8]} 47. Rc6
{[%clk 0:00:10.5]} 47... h4 {[%clk 0:00:11.4]} 48. Rc3 {[%clk 0:00:11.2]} 48...
Kf4 {[%clk 0:00:09.1]} 49. Kg1 {[%clk 0:00:10.2]} 49... g4 {[%clk 0:00:09.1]}
50. Rc6 {[%clk 0:00:10.6]} 50... g3 {[%clk 0:00:09.5]} 51. Rc3 {[%clk
0:00:07.9]} 51... Re1# {[%clk 0:00:10.2]} 0-1